Cogmind - Beta 14 @@@ ROGUE MODE // 2024.12.28 @ 00:54:56 Player: nado Result: Destroyed self with Rocket Launcher Performance ------------- Evolutions (0) 0 Regions Visited (2) 400 Robots Destroyed (18) 90 Value Destroyed (353) 353 Prototype IDs (2) 40 Alien Tech Used (0) 0 Bonus (0) 0 TOTAL SCORE: 883 Bonus ------- None Cogmind --------- Core Integrity 0/250 Matter 177/300 Energy 85/100 System Corruption 0% Temperature Cool (0) Movement Rolling (130) Ox2 Location -10/Mines Parts ------- > --- POWER (1) -------- (None) > --- PROPULSION (2) --- Compact Wheel > --- UTILITY (2) ------ High-capacity Storage Unit > --- WEAPON (2) ------- Particle Cannon Rocket Launcher > --- INVENTORY (20) --- Ion Engine Improved Ion Engine Improved Ion Engine Large Storage Unit Structural Scanner ECM Suite ECM Suite Medium Laser Medium Laser Particle Cannon Particle Cannon Particle Cannon Light Assault Rifle Mini Grenade Launcher Mini Grenade Launcher Mini Grenade Launcher Peak State ------------ > --- POWER ------------ Improved Ion Engine > --- PROPULSION ------- Light Treads Compact Wheel > --- UTILITY ---------- Large Storage Unit High-capacity Storage Unit > --- WEAPON ----------- Particle Cannon Light Assault Rifle > --- INVENTORY -------- Ion Engine Improved Ion Engine Improved Ion Engine Medium Storage Unit Structural Scanner ECM Suite ECM Suite Medium Laser Medium Laser Particle Cannon Particle Cannon Particle Cannon Mini Grenade Launcher Mini Grenade Launcher Mini Grenade Launcher [Rating: 11] Favorites ----------- Power Ion Engine Engine Ion Engine Propulsion Light Treads Treads Light Treads Wheel Compact Wheel Utility Light Armor Plating Storage Small Storage Unit Protection Light Armor Plating Weapon Light Assault Rifle Energy Gun EM Pulse Gun Energy Cannon Particle Cannon Ballistic Gun Light Assault Rifle Launcher Rocket Launcher Build | -11 -10 -10 ------- Run | Yrd Mat Min Slots Evolved . | . . . Power . | . . . Propulsion . | . . . Utility . | . . . Weapon . | . . . Parts Attached 15 | 6 8 1 Power 2 | 1 1 . Engine 2 | 1 1 . Core . | . . . Reactor . | . . . Propulsion 3 | 2 1 . Treads 2 | 2 . . Leg . | . . . Wheel 1 | . 1 . Hover . | . . . Flight . | . . . Utility 5 | 1 4 . Device . | . . . Storage 4 | 1 3 . Processor . | . . . Hackware . | . . . Protection 1 | . 1 . Artifact . | . . . Weapon 5 | 2 2 1 Energy Gun 1 | 1 . . Energy Cannon 1 | . 1 . Ballistic Gun 2 | 1 1 . Ballistic Cannon . | . . . Launcher 1 | . . 1 Special Weapon . | . . . Impact Weapon . | . . . Slashing Weapon . | . . . Piercing Weapon . | . . . Special Melee Weapon . | . . . Unidentified Prototypes . | . . . Parts Lost 5 | . 3 2 Power 1 | . . 1 Propulsion 2 | . 1 1 Utility 1 | . 1 . Weapon 1 | . 1 . Highest Loss Streak 2 | . 2 2 To Critical Strikes . | . . . Average Slot Usage (%) 86 | . 87 71 Engine 13 | . 14 7 Treads 20 | . 22 6 Wheel 3 | . 1 14 Storage 14 | . 14 14 Protection 6 | . 7 . Energy Gun 2 | . 2 . Energy Cannon 6 | . 5 14 Ballistic Gun 17 | . 19 5 Peak Build Rating 11 | 6 11 11 Average Rating 7 | 4 7 9 On Entrance 5 | . 6 10 Naked Turns . | . . . Heaviest Build 72 | 13 72 52 Greatest Support 40 | 40 40 16 Greatest Overweight (x) 4 | . 4 3 Average Overweight (x) . | . . 2 Largest Inventory Capacity 20 | 8 20 20 Average Capacity 12 | 7 11 20 Most Carried 16 | 3 16 16 Average Carried 9 | 1 9 15 Final Capacity 20 | 8 20 20 Final Carried 16 | 3 15 16 Class Distribution -------------------- 100% | Mutant Dominant Class ---------------- Mutant | -10/Materials Mutant | -10/Mines Resources | -11 -10 -10 ----------- Run | Yrd Mat Min Matter Collected 396 | 246 149 1 Remotely . | . . . Salvage Created 598 | . 580 18 Parts 43 | . 39 4 Haulers Intercepted 2 | . 2 . Recyclers Shooed 1 | . 1 . Parts Field Recycled . | . . . Retrieved Matter . | . . . Parts Self-Destructed . | . . . Prevented . | . . . Kills | -11 -10 -10 ------- Run | Yrd Mat Min Combat Hostiles Destroyed 13 | . 10 3 Guns 7 | . 7 . Cannons 3 | . 2 1 AOE 3 | . 1 2 Classes Destroyed 5 | . 5 . Hauler 2 | . 2 . Recycler 2 | . 2 . Watcher 1 | . 1 . Swarmer 6 | . 3 3 Grunt 7 | . 7 . Best Kill Streak 4 | . 4 3 Combat Bots Only 3 | . 3 3 Max Kills in Single Turn 2 | . 2 1 Gunslinging . | . . . Exploded 1 | . 1 1 Melee . | . . . Uniques/NPCs Destroyed . | . . . Combat | -11 -10 -10 -------- Run | Yrd Mat Min Hostile Shots Fired 91 | . 67 24 Missed 27 | . 20 7 Damage Taken 948 | . 684 264 Core 251 | . 159 92 Absorbed by Shields . | . . . Core Remaining (%) 100 | 100 . . Volleys Fired 59 | . 49 10 Largest 2 | . 2 2 Hottest 101 | . 88 101 Shots Fired 118 | . 98 20 Gun 90 | . 90 . Cannon 18 | . 8 10 Launcher 10 | . . 10 Special . | . . . Kinetic 89 | . 89 . Thermal 18 | . 8 10 Explosive 10 | . . 10 Electromagnetic 1 | . 1 . Robot Hit Streak 14 | . 14 3 Robot Miss Streak 2 | . 2 . Penetration Max . | . . . Secondary Targets 2 | . 2 . Max Gunslinging Chain 1 | . 1 . Shots Hit Robots 74 | . 72 2 Core Hits 32 | . 29 3 Critical Kills . | . . . Critical Parts Destroyed 1 | . 1 . Critical Strikes 1 | . 1 . Destroy 1 | . 1 . Melee Attacks . | . . . Impact . | . . . Slashing . | . . . Piercing . | . . . Sneak Attacks . | . . . Combat Hostiles . | . . . Follow-up Attacks . | . . . Damage Inflicted 1120 | . 881 239 Guns 544 | . 544 . Cannons 196 | . 152 44 Explosions 371 | . 176 195 Melee . | . . . Ramming 9 | . 9 . Kinetic 544 | . 544 . Thermal 196 | . 152 44 Explosive 371 | . 176 195 Electromagnetic . | . . . Impact . | . . . Slashing . | . . . Piercing . | . . . Highest Corruption . | . . . Average Corruption . | . . . Corruption Purged . | . . . Corruption Blocked . | . . . Overload Shots . | . . . Overflow Damage 48 | . 23 25 Projectiles . | . . . Explosions 48 | . 23 25 Melee . | . . . Knockbacks . | . . . Impact . | . . . Kinetic . | . . . Secondary . | . . . Self-Inflicted Damage 231 | . 109 122 Shots 4 | . 1 3 Rammed 4 | 2 2 . Targets Rammed 5 | 2 3 . Kicked . | . . . Crushed 1 | . 1 . Highest Temperature 336 | . 162 336 Average Temperature 69 | . 35 180 Received Heat Transfer 248 | . 228 20 Effects 1 | . . 1 Energy Bleed 1 | . . 1 Siege Activations . | . . . Robots Corrupted . | . . . Combat Hostiles . | . . . Parts Fried . | . . . Impact Corruptions . | . . . Robots Melted . | . . . Combat Hostiles . | . . . Parts Melted 2 | . 2 . Heat Transferred 333 | . 259 74 Parts Sabotaged . | . . . Parts Stolen . | . . . Parts Stripped . | . . . Power Chain Reactions . | . . . Alert | -11 -10 -10 ------- Run | Yrd Mat Min Peak Influence 118 | . 118 103 Initial 27 | . . 27 Average 34 | . 33 64 Maximum Alert Level . | . . . Low Security (%) 100 | 100 100 100 Level 1 . | . . . Level 2 . | . . . Level 3 . | . . . Level 4 . | . . . Level 5 . | . . . High Security . | . . . Max Security . | . . . Squads Dispatched 2 | . 2 . Investigation 1 | . 1 . Extermination . | . . . Reinforcement 1 | . 1 . Assault . | . . . Garrison . | . . . Intercept . | . . . Searches Triggered . | . . . Construction Impeded . | . . . Haulers Reinforced . | . . . Active Scanning Responses . | . . . Cargo Convoy Interrupts . | . . . Stealth | -11 -10 -10 --------- Run | Yrd Mat Min Distress Signals 3 | . 3 . Communications Jammed . | . . . Distress Signals . | . . . Times Spotted 24 | . 20 4 Peak Tracking Total 4 | . 4 3 Tactical Retreats 2 | . 2 . Traps | -11 -10 -10 ------- Run | Yrd Mat Min Traps Triggered 1 | . 1 . Indirectly . | . . . Trap Hack Attempts . | . . . Triggered . | . . . Disarmed . | . . . Reprogrammed . | . . . Reused . | . . . Traps Extracted . | . . . Installed . | . . . Triggered . | . . . Machines | -11 -10 -10 ---------- Run | Yrd Mat Min Machines Disabled 1 | . 1 . Max in Single Turn 1 | . 1 . Machines Repaired . | . . . Machines Dismantled . | . . . Machines Sabotaged . | . . . Overloaded Fab Kills . | . . . Hacking | -11 -10 -10 --------- Run | Yrd Mat Min Machines Accessed 6 | . 6 . Terminals 6 | . 6 . Fabricators . | . . . Repair Stations . | . . . Recycling Units . | . . . Scanalyzers . | . . . Garrison Access . | . . . Total Hacks 18 | . 18 . Successful 6 | . 6 . Failed 12 | . 12 . Catastrophic 6 | . 6 . Database Lockouts . | . . . Manual 17 | . 17 . Terminals 18 | . 18 . Fabricators . | . . . Repair Stations . | . . . Recycling Units . | . . . Scanalyzers . | . . . Garrison Access . | . . . Terminal Hacks 6 | . 6 . Robot Analysis 2 | . 2 . Prototype ID Bank 1 | . 1 . Branch Access Points 1 | . 1 . Unreport Threat 1 | . 1 . Hauler Manifests 1 | . 1 . Fabricator Hacks . | . . . Repair Station Hacks . | . . . Recycling Unit Hacks . | . . . Scanalyzer . | . . . Garrison Access Hacks . | . . . Unauthorized Hacks . | . . . Terminals . | . . . Fabricators . | . . . Repair Stations . | . . . Recycling Units . | . . . Scanalyzers . | . . . Garrison Access . | . . . Data Cores Recovered . | . . . Used . | . . . Hacking Detections 6 | . 6 . Full Trace Events 2 | . 2 . Feedback Events . | . . . Feedback Blocked . | . . . Robot Schematics Acquired . | . . . Robots Built . | . . . Authchips . | . . . Time . | . . . Total Robot Build Rating . | . . . Part Schematics Acquired . | . . . Parts Built . | . . . Authchips . | . . . Time . | . . . Total Part Build Rating . | . . . Parts Repaired . | . . . Time . | . . . Parts Recycled . | . . . Recycled Matter . | . . . Retrieved Matter . | . . . Retrieved Components . | . . . Parts Scanalyzed . | . . . Part Schematics Acquired . | . . . Parts Damaged . | . . . Bothacking | -11 -10 -10 ------------ Run | Yrd Mat Min Used RIF Installer . | . . . Robots Hacked . | . . . Non-combat . | . . . Combat . | . . . Robot Hacks Applied . | . . . Relay Couplers Released . | . . . Fabnet Peak Effective % . | . . . Robots Rewired . | . . . Allies Hacked . | . . . Hacks Repelled . | . . . Allies | -11 -10 -10 -------- Run | Yrd Mat Min Total Allies . | . . . Largest Group . | . . . Highest-Rated Group . | . . . Highest-Rated Ally . | . . . Total Orders . | . . . Ally Attacks . | . . . Total Damage . | . . . Kills . | . . . Allies Corrupted . | . . . Allies Melted . | . . . Intel | -11 -10 -10 ------- Run | Yrd Mat Min Robot Analysis Total 2 | . 2 . Derelict Logs Recovered 1 | . . 1 Drone Launches . | . . . Drone Recoveries . | . . . Exploration | -11 -10 -10 ------------- Run | Yrd Mat Min Turns Passed 1442 | 96 1199 147 Spaces Moved 710 | 52 573 85 Core 1 | 1 . . Treads 528 | 51 477 . Legs . | . . . Wheels 181 | . 96 85 Hover . | . . . Flight . | . . . Fastest Speed 50 | 50 115 130 Average Speed 168 | 157 173 137 Slowest Speed 240 | 160 240 145 Overloaded Moves . | . . . Propulsion Burnouts . | . . . Robots Hopped . | . . . Cave-ins Triggered . | . . . Exploration Rate (%) 35 | 4 82 21 Regions Visited 2 Branch Regions 1 Pre-discovered Areas . | . . . Known Exits Taken 1 | . 1 . Unknown Exits Taken 1 | 1 . . Scrap Searched . | . . . Spaces Dug . | . . . Terrain Destroyed 56 | . 21 35 Melee . | . . . Projectile . | . . . AOE 56 | . 21 35 Terrain Rammed . | . . . Walls Destroyed . | . . . Machines Disabled . | . . . Actions | -11 -10 -10 --------- Run | Yrd Mat Min Total 859 | 62 700 97 Wait 40 | . 40 . Move 708 | 51 572 85 Hop . | . . . Pick Up 21 | 3 17 1 Fast Attach 10 | 6 4 . Attach 2 | . 2 . Detach 3 | . 3 . Swap 3 | . 2 1 Drop 8 | . 8 . Fire 59 | . 49 10 Melee . | . . . Ram . | . . . Kick . | . . . Crush 5 | 2 3 . Escape Stasis . | . . . Rewire . | . . . Trap . | . . . Miscellaneous . | . . . Route ------- -11/Scrapyard -10/Materials (discovered 3 exits: [*Mat x2] / *Min) -10/Mines History --------- Turn | Location | Event 15 | -11/Scrapyard | Discovered new exit (range 15) 97 | -11/Scrapyard | Entered Materials 109 | -10/Materials | Identified exit to Mines 307 | -10/Materials | Build established: Mutant 439 | -10/Materials | Discovered new exit (range 3) 798 | -10/Materials | Core integrity fell below 50% 910 | -10/Materials | Discovered new exit (range 16) 1296 | -10/Materials | Entered Mines 1303 | -10/Mines | Received a Rocket Launcher from a helpful Derelict 1375 | -10/Mines | Core integrity fell below 20% 1442 | -10/Mines | Excavation squad dispatched 1442 | -10/Mines | A large section of the Mines collapsed 1443 | -10/Mines | Destroyed self with Rocket Launcher Last Messages --------------- 01303_ ST-00Z(g): "Would you like a rocket launcher? I know I would if I were you, so I'm going to lend you mine." 01303_ ST-00Z(g) slips back into the shadows. 01317_ Acquired Rocket Launcher. 01361_ Lgt. Treads destroyed. 01361_ Destroyed Lgt. Treads. 01364_ S-10 Pest destroyed. 01370_ Destroyed Flight Unit. 01374_ The unstable cave ceiling collapses. 01378_ Imp. Ion Engine destroyed. 01382_ S-10 Pest destroyed. 01384_ Overheating: Energy bleed (-20). 01388_ The unstable cave ceiling collapses. 01401_ Acquired 1 matter. 01411_ The unstable cave ceiling collapses. 01428_ Acquired derelict log, extracted data. Data stored: Recycling entrances (x1). 01442_ ALERT: Suspicious cave-in, suspected derelict activity in mines. Dispatching escorted excavation squad. 01443_ Destroyed Asb. F-torch. Map ----- +----------------------------------------------------+ | ??????????????????????????????? | | ??????????????????????????????? | | ??????????????????????????????? | | ??????????????????????????????? | | ??????????????????????????????? | | ??????????????????????????????? | | ??????????????????????????????? | | ??????????????????????????????? | | ??????????????????????????????? | | ??????????????????????????????? | | ??????????????????????????????? | | ??????????????????????????????? | | ??????????????????????????????? | | ?????????????####?????????????? | | ????????????## ####??????????? | | ???????????## #####??????? | | ??????????## # ####???? | | ??????????# #???? | | ??????????? ## ##??? | | ???####????? #### | | ??## ####### ## ## | | ??# ## ### # | | ??### ### [ | | ??## ##### | | ??## a ####### = | | ???###@# #???# | | ????#### #??## ### | | ?????## #??####?## ## # | | ??????? #????????###### # | | ??????? #?????????????###### | | ???????# ##??????????????????# | | ????????###???????????????????# | | ??????????????????????????????? | | ??????????????????????????????? | | | | | | | | | | | | | | | | | | | | | | | | | | | | | | | | | +----------------------------------------------------+ Best States ------------- Heat Dissipation 25 Energy Generation 12 Energy Capacity 265 Matter Stores 300 Matter Capacity 300 Sight Range 16 Terrain Scan Density 10 Armor Coverage 150 Evasion (%) 40 Recoil Reduction 2 Item Schematics ----------------- None Robot Schematics ------------------ None Fabricated ------------ Nothing Alien Tech Used ----------------- None Achievements -------------- None Challenges ------------ None Game ------ Seed HybridDynamicDetonator Manual? 0 Play Time 00:13:20 Cumulative 54.0 hours Start 2024.12.28 @ 00:37:53 End 2024.12.28 @ 00:54:56 Sessions 1 Manual Loads 0 Difficulty Rogue Special Mode None Game No. 38 Rogue 38 Adventurer 0 Explorer 0 Win Type - Total 0 Types 0/0/0/0/0/0/0/0/0 Lore% 21 Gallery% 29 Achievement% 28 Wizard Run 0 Options --------- Layout 0 ASCII 0 Keyboard 1 Movement Arrows Keybinds 0 Fullscreen 2 Font 18/Terminus Map View 76x50 Zoom Use 0% Tactical HUD 1 Map Filters NONE Filters NONE Steam 1 RUN: f33b3132-320d-42dd-9d77-c4f2e7a28c56